Workbook

Sheet March12nc
A1: March 12 Non Calculator
B2: q1a | C2: q1b | D2: q2 | E2: q3a | F2: q3b | G2: q4 | H2: q5a | I2: q5b | J2: q6 | K2: q7 | L2: 8a | M2: 8b | N2: q9 | O2: q10 | P2: q11 | Q2: q12 | R2: q13a | S2: q13b | T2: q14 | U2: q15 | V2: q16 | W2: q17 | X2: q18 | Y2: q19 | Z2: q20 | AA2: q21a | AB2: q21b | AC2: q22 | AD2: q23 | AE2: q24
B3: Collecting Like Terms | C3: Reverse Percentages | D3: Estimation | E3: Multiplication and Division | F3: Easy Percentage + fractions Ao3 Questions | G3: Angles in Parallel Lines | H3: Probability | I3: Probability | J3: Averages and Range | K3: Stem and Leaf | L3: Solving Equations | M3: Solving Equations | N3: Create a Formula | O3: Ratio | P3: Area AO3 Problems | Q3: Frequency Polygons | R3: Drawing Straight Line Graphs | S3: Solving Simultaneous Equations Graphically | T3: Standard Form | U3: Algebraic Assorted Questions | V3: Box plots | W3: Similar Shapes | X3: Tree Diagrams | Y3: Circle Theorems | Z3: Drawing Quadratic Graphs | AA3: More Difficult Rearranging Formulae | AB3: Substitute to show a solution is correct | AC3: Surds | AD3: Vectors | AE3: Trig and Pythag AO3 Problems
A4: Max Mark | B4: 2 | C4: 1 | D4: 3 | E4: 3 | F4: 3 | G4: 3 | H4: 2 | I4: 2 | J4: 4 | K4: 5 | L4: 2 | M4: 2 | N4: 3 | O4: 2 | P4: 6 | Q4: 3 | R4: 3 | S4: 1 | T4: 3 | U4: 7 | V4: 3 | W4: 4 | X4: 5 | Y4: 6 | Z4: 3 | AA4: 2 | AB4: 3 | AC4: 4 | AD4: 4 | AE4: 6
A5: Class Average (%) | B5: =AVERAGE(B9:B40)/B4 -> 1 | C5: 1 | D5: 0.6666666667 | E5: 1 | F5: 1 | G5: 0 | H5: 1 | I5: 0 | J5: 1 | K5: 1 | L5: 1 | M5: 1 | N5: 0 | O5: 1 | P5: 0 | Q5: 0.3333333333 | R5: 0.3333333333 | S5: 0 | T5: 0 | U5: 0.2857142857 | V5: 0 | W5: 0.5 | X5: 0 | Y5: 0.1666666667 | Z5: 0.3333333333 | AA5: 0 | AB5: =AVERAGE(AB9:AB40)/AB4 -> 0 | AC5: 0 | AD5: 0 | AE5: 0
A6: Standard Deviation | B6: =IF(COUNT(B9:B36)<2,"",STDEV(B9:B40)/B4) -> 0 | C6: 0 | D6: 0 | E6: 0 | F6: 0 | G6: 0 | H6: 0 | I6: 0 | J6: 0 | K6: 0 | L6: 0 | M6: 0 | N6: 0 | O6: 0 | P6: 0 | Q6: 0 | R6: 0 | S6: 0 | T6: 0 | U6: 0 | V6: 0 | W6: 0 | X6: 0 | Y6: 0 | Z6: 0 | AA6: 0 | AB6: =IF(COUNT(AB9:AB36)<2,"",STDEV(AB9:AB40)/AB4) -> 0 | AC6: 0 | AD6: 0 | AE6: 0
B7: q1a | C7: q1b | D7: q2 | E7: q3a | F7: q3b | G7: q4 | H7: q5a | I7: q5b | J7: q6 | K7: q7 | L7: 8a | M7: 8b | N7: q9 | O7: q10 | P7: q11 | Q7: q12 | R7: q13a | S7: q13b | T7: q14 | U7: q15 | V7: q16 | W7: q17 | X7: q18 | Y7: q19 | Z7: q20 | AA7: q21a | AB7: q21b | AC7: q22 | AD7: q23 | AE7: q24 | AF7: Total Marks | AG7: Grade
A8: Name
A9: sample 1 | B9: 2 | C9: 1 | D9: 2 | E9: 3 | F9: 3 | G9: 0 | H9: 2 | I9: 0 | J9: 4 | K9: 5 | L9: 2 | M9: 2 | N9: 0 | O9: 2 | P9: 0 | Q9: 1 | R9: 1 | S9: 0 | T9: 0 | U9: 2 | V9: 0 | W9: 2 | X9: 0 | Y9: 1 | Z9: 1 | AA9: 0 | AB9: 0 | AC9: 0 | AD9: 0 | AE9: 0 | AF9: =IF(AE9="","",SUM(B9:AE9)) -> 36 | AG9: =IF(AF9="","",VLOOKUP(AF9,$AI$13:$AJ$34,2)) -> C2
A10: sample 2 | B10: 2 | C10: 1 | D10: 2 | E10: 3 | F10: 3 | G10: 0 | H10: 2 | I10: 0 | J10: 4 | K10: 5 | L10: 2 | M10: 2 | N10: 0 | O10: 2 | P10: 0 | Q10: 1 | R10: 1 | S10: 0 | T10: 0 | U10: 2 | V10: 0 | W10: 2 | X10: 0 | Y10: 1 | Z10: 1 | AA10: 0 | AB10: 0 | AC10: 0 | AD10: 0 | AE10: 0 | AF10: =IF(AE10="","",SUM(B10:AE10)) -> 36 | AG10: =IF(AF10="","",VLOOKUP(AF10,$AI$13:$AJ$34,2)) -> C2 | AI10: Grade Boundaries
A11: sample 3 | B11: 2 | C11: 1 | D11: 2 | E11: 3 | F11: 3 | G11: 0 | H11: 2 | I11: 0 | J11: 4 | K11: 5 | L11: 2 | M11: 2 | N11: 0 | O11: 2 | P11: 0 | Q11: 1 | R11: 1 | S11: 0 | T11: 0 | U11: 2 | V11: 0 | W11: 2 | X11: 0 | Y11: 1 | Z11: 1 | AA11: 0 | AB11: 0 | AC11: 0 | AD11: 0 | AE11: 0 | AF11: 36 | AG11: C2
A12: sample 4 | B12: 2 | C12: 1 | D12: 2 | E12: 3 | F12: 3 | G12: 0 | H12: 2 | I12: 0 | J12: 4 | K12: 5 | L12: 2 | M12: 2 | N12: 0 | O12: 2 | P12: 0 | Q12: 1 | R12: 1 | S12: 0 | T12: 0 | U12: 2 | V12: 0 | W12: 2 | X12: 0 | Y12: 1 | Z12: 1 | AA12: 0 | AB12: 0 | AC12: 0 | AD12: 0 | AE12: 0 | AF12: 36 | AG12: C2 | AI12: Non- Calc
A13: sample 5 | B13: 2 | C13: 1 | D13: 2 | E13: 3 | F13: 3 | G13: 0 | H13: 2 | I13: 0 | J13: 4 | K13: 5 | L13: 2 | M13: 2 | N13: 0 | O13: 2 | P13: 0 | Q13: 1 | R13: 1 | S13: 0 | T13: 0 | U13: 2 | V13: 0 | W13: 2 | X13: 0 | Y13: 1 | Z13: 1 | AA13: 0 | AB13: 0 | AC13: 0 | AD13: 0 | AE13: 0 | AF13: 36 | AG13: C2 | AI13: 0 | AJ13: F3
A14: sample 6 | B14: 2 | C14: 1 | D14: 2 | E14: 3 | F14: 3 | G14: 0 | H14: 2 | I14: 0 | J14: 4 | K14: 5 | L14: 2 | M14: 2 | N14: 0 | O14: 2 | P14: 0 | Q14: 1 | R14: 1 | S14: 0 | T14: 0 | U14: 2 | V14: 0 | W14: 2 | X14: 0 | Y14: 1 | Z14: 1 | AA14: 0 | AB14: 0 | AC14: 0 | AD14: 0 | AE14: 0 | AF14: 36 | AG14: C2 | AI14: =AI13+(AI16-AI13)/3 -> 3.666666667 | AJ14: F2
A15: sample 7 | B15: 2 | C15: 1 | D15: 2 | E15: 3 | F15: 3 | G15: 0 | H15: 2 | I15: 0 | J15: 4 | K15: 5 | L15: 2 | M15: 2 | N15: 0 | O15: 2 | P15: 0 | Q15: 1 | R15: 1 | S15: 0 | T15: 0 | U15: 2 | V15: 0 | W15: 2 | X15: 0 | Y15: 1 | Z15: 1 | AA15: 0 | AB15: 0 | AC15: 0 | AD15: 0 | AE15: 0 | AF15: 36 | AG15: C2 | AI15: =AI13+2*(AI16-AI13)/3 -> 7.333333333 | AJ15: F1
A16: sample 8 | B16: 2 | C16: 1 | D16: 2 | E16: 3 | F16: 3 | G16: 0 | H16: 2 | I16: 0 | J16: 4 | K16: 5 | L16: 2 | M16: 2 | N16: 0 | O16: 2 | P16: 0 | Q16: 1 | R16: 1 | S16: 0 | T16: 0 | U16: 2 | V16: 0 | W16: 2 | X16: 0 | Y16: 1 | Z16: 1 | AA16: 0 | AB16: 0 | AC16: 0 | AD16: 0 | AE16: 0 | AF16: 36 | AG16: C2 | AI16: 11 | AJ16: E3
A17: sample 9 | B17: 2 | C17: 1 | D17: 2 | E17: 3 | F17: 3 | G17: 0 | H17: 2 | I17: 0 | J17: 4 | K17: 5 | L17: 2 | M17: 2 | N17: 0 | O17: 2 | P17: 0 | Q17: 1 | R17: 1 | S17: 0 | T17: 0 | U17: 2 | V17: 0 | W17: 2 | X17: 0 | Y17: 1 | Z17: 1 | AA17: 0 | AB17: 0 | AC17: 0 | AD17: 0 | AE17: 0 | AF17: 36 | AG17: C2 | AI17: =AI16+(AI19-AI16)/3 -> 12.66666667 | AJ17: E2
A18: sample 10 | B18: 2 | C18: 1 | D18: 2 | E18: 3 | F18: 3 | G18: 0 | H18: 2 | I18: 0 | J18: 4 | K18: 5 | L18: 2 | M18: 2 | N18: 0 | O18: 2 | P18: 0 | Q18: 1 | R18: 1 | S18: 0 | T18: 0 | U18: 2 | V18: 0 | W18: 2 | X18: 0 | Y18: 1 | Z18: 1 | AA18: 0 | AB18: 0 | AC18: 0 | AD18: 0 | AE18: 0 | AF18: 36 | AG18: C2 | AI18: =AI16+2*(AI19-AI16)/3 -> 14.33333333 | AJ18: E1
A19: sample 11 | B19: 2 | C19: 1 | D19: 2 | E19: 3 | F19: 3 | G19: 0 | H19: 2 | I19: 0 | J19: 4 | K19: 5 | L19: 2 | M19: 2 | N19: 0 | O19: 2 | P19: 0 | Q19: 1 | R19: 1 | S19: 0 | T19: 0 | U19: 2 | V19: 0 | W19: 2 | X19: 0 | Y19: 1 | Z19: 1 | AA19: 0 | AB19: 0 | AC19: 0 | AD19: 0 | AE19: 0 | AF19: 36 | AG19: C2 | AI19: 16 | AJ19: D3
A20: sample 12 | B20: 2 | C20: 1 | D20: 2 | E20: 3 | F20: 3 | G20: 0 | H20: 2 | I20: 0 | J20: 4 | K20: 5 | L20: 2 | M20: 2 | N20: 0 | O20: 2 | P20: 0 | Q20: 1 | R20: 1 | S20: 0 | T20: 0 | U20: 2 | V20: 0 | W20: 2 | X20: 0 | Y20: 1 | Z20: 1 | AA20: 0 | AB20: 0 | AC20: 0 | AD20: 0 | AE20: 0 | AF20: 36 | AG20: C2 | AI20: =AI19+(AI22-AI19)/3 -> 19.33333333 | AJ20: D2
A21: sample 13 | B21: 2 | C21: 1 | D21: 2 | E21: 3 | F21: 3 | G21: 0 | H21: 2 | I21: 0 | J21: 4 | K21: 5 | L21: 2 | M21: 2 | N21: 0 | O21: 2 | P21: 0 | Q21: 1 | R21: 1 | S21: 0 | T21: 0 | U21: 2 | V21: 0 | W21: 2 | X21: 0 | Y21: 1 | Z21: 1 | AA21: 0 | AB21: 0 | AC21: 0 | AD21: 0 | AE21: 0 | AF21: 36 | AG21: C2 | AI21: =AI19+2*(AI22-AI19)/3 -> 22.66666667 | AJ21: D1
A22: sample 14 | B22: 2 | C22: 1 | D22: 2 | E22: 3 | F22: 3 | G22: 0 | H22: 2 | I22: 0 | J22: 4 | K22: 5 | L22: 2 | M22: 2 | N22: 0 | O22: 2 | P22: 0 | Q22: 1 | R22: 1 | S22: 0 | T22: 0 | U22: 2 | V22: 0 | W22: 2 | X22: 0 | Y22: 1 | Z22: 1 | AA22: 0 | AB22: 0 | AC22: 0 | AD22: 0 | AE22: 0 | AF22: 36 | AG22: C2 | AI22: 26 | AJ22: C3
A23: sample 15 | B23: 2 | C23: 1 | D23: 2 | E23: 3 | F23: 3 | G23: 0 | H23: 2 | I23: 0 | J23: 4 | K23: 5 | L23: 2 | M23: 2 | N23: 0 | O23: 2 | P23: 0 | Q23: 1 | R23: 1 | S23: 0 | T23: 0 | U23: 2 | V23: 0 | W23: 2 | X23: 0 | Y23: 1 | Z23: 1 | AA23: 0 | AB23: 0 | AC23: 0 | AD23: 0 | AE23: 0 | AF23: 36 | AG23: C2 | AI23: =AI22+(AI25-AI22)/3 -> 31.66666667 | AJ23: C2
A24: sample 16 | B24: 2 | C24: 1 | D24: 2 | E24: 3 | F24: 3 | G24: 0 | H24: 2 | I24: 0 | J24: 4 | K24: 5 | L24: 2 | M24: 2 | N24: 0 | O24: 2 | P24: 0 | Q24: 1 | R24: 1 | S24: 0 | T24: 0 | U24: 2 | V24: 0 | W24: 2 | X24: 0 | Y24: 1 | Z24: 1 | AA24: 0 | AB24: 0 | AC24: 0 | AD24: 0 | AE24: 0 | AF24: 36 | AG24: C2 | AI24: =AI22+2*(AI25-AI22)/3 -> 37.33333333 | AJ24: C1
A25: sample 17 | B25: 2 | C25: 1 | D25: 2 | E25: 3 | F25: 3 | G25: 0 | H25: 2 | I25: 0 | J25: 4 | K25: 5 | L25: 2 | M25: 2 | N25: 0 | O25: 2 | P25: 0 | Q25: 1 | R25: 1 | S25: 0 | T25: 0 | U25: 2 | V25: 0 | W25: 2 | X25: 0 | Y25: 1 | Z25: 1 | AA25: 0 | AB25: 0 | AC25: 0 | AD25: 0 | AE25: 0 | AF25: 36 | AG25: C2 | AI25: 43 | AJ25: B3
A26: sample 18 | B26: 2 | C26: 1 | D26: 2 | E26: 3 | F26: 3 | G26: 0 | H26: 2 | I26: 0 | J26: 4 | K26: 5 | L26: 2 | M26: 2 | N26: 0 | O26: 2 | P26: 0 | Q26: 1 | R26: 1 | S26: 0 | T26: 0 | U26: 2 | V26: 0 | W26: 2 | X26: 0 | Y26: 1 | Z26: 1 | AA26: 0 | AB26: 0 | AC26: 0 | AD26: 0 | AE26: 0 | AF26: 36 | AG26: C2 | AI26: =AI25+(AI28-AI25)/3 -> 49 | AJ26: B2
A27: sample 19 | B27: 2 | C27: 1 | D27: 2 | E27: 3 | F27: 3 | G27: 0 | H27: 2 | I27: 0 | J27: 4 | K27: 5 | L27: 2 | M27: 2 | N27: 0 | O27: 2 | P27: 0 | Q27: 1 | R27: 1 | S27: 0 | T27: 0 | U27: 2 | V27: 0 | W27: 2 | X27: 0 | Y27: 1 | Z27: 1 | AA27: 0 | AB27: 0 | AC27: 0 | AD27: 0 | AE27: 0 | AF27: 36 | AG27: C2 | AI27: =AI25+2*(AI28-AI25)/3 -> 55 | AJ27: B1
A28: sample 20 | B28: 2 | C28: 1 | D28: 2 | E28: 3 | F28: 3 | G28: 0 | H28: 2 | I28: 0 | J28: 4 | K28: 5 | L28: 2 | M28: 2 | N28: 0 | O28: 2 | P28: 0 | Q28: 1 | R28: 1 | S28: 0 | T28: 0 | U28: 2 | V28: 0 | W28: 2 | X28: 0 | Y28: 1 | Z28: 1 | AA28: 0 | AB28: 0 | AC28: 0 | AD28: 0 | AE28: 0 | AF28: 36 | AG28: C2 | AI28: 61 | AJ28: A3
A29: sample 21 | B29: 2 | C29: 1 | D29: 2 | E29: 3 | F29: 3 | G29: 0 | H29: 2 | I29: 0 | J29: 4 | K29: 5 | L29: 2 | M29: 2 | N29: 0 | O29: 2 | P29: 0 | Q29: 1 | R29: 1 | S29: 0 | T29: 0 | U29: 2 | V29: 0 | W29: 2 | X29: 0 | Y29: 1 | Z29: 1 | AA29: 0 | AB29: 0 | AC29: 0 | AD29: 0 | AE29: 0 | AF29: 36 | AG29: C2 | AI29: =AI28+(AI31-AI28)/3 -> 67.33333333 | AJ29: A2
A30: sample 22 | B30: 2 | C30: 1 | D30: 2 | E30: 3 | F30: 3 | G30: 0 | H30: 2 | I30: 0 | J30: 4 | K30: 5 | L30: 2 | M30: 2 | N30: 0 | O30: 2 | P30: 0 | Q30: 1 | R30: 1 | S30: 0 | T30: 0 | U30: 2 | V30: 0 | W30: 2 | X30: 0 | Y30: 1 | Z30: 1 | AA30: 0 | AB30: 0 | AC30: 0 | AD30: 0 | AE30: 0 | AF30: 36 | AG30: C2 | AI30: =AI28+2*(AI31-AI28)/3 -> 73.66666667 | AJ30: A1
A31: sample 23 | B31: 2 | C31: 1 | D31: 2 | E31: 3 | F31: 3 | G31: 0 | H31: 2 | I31: 0 | J31: 4 | K31: 5 | L31: 2 | M31: 2 | N31: 0 | O31: 2 | P31: 0 | Q31: 1 | R31: 1 | S31: 0 | T31: 0 | U31: 2 | V31: 0 | W31: 2 | X31: 0 | Y31: 1 | Z31: 1 | AA31: 0 | AB31: 0 | AC31: 0 | AD31: 0 | AE31: 0 | AF31: 36 | AG31: C2 | AI31: 80 | AJ31: A*3
A32: sample 24 | B32: 2 | C32: 1 | D32: 2 | E32: 3 | F32: 3 | G32: 0 | H32: 2 | I32: 0 | J32: 4 | K32: 5 | L32: 2 | M32: 2 | N32: 0 | O32: 2 | P32: 0 | Q32: 1 | R32: 1 | S32: 0 | T32: 0 | U32: 2 | V32: 0 | W32: 2 | X32: 0 | Y32: 1 | Z32: 1 | AA32: 0 | AB32: 0 | AC32: 0 | AD32: 0 | AE32: 0 | AF32: 36 | AG32: C2 | AI32: =AI31+(AI34-AI31)/3 -> 86.66666667 | AJ32: A*2
A33: sample 25 | B33: 2 | C33: 1 | D33: 2 | E33: 3 | F33: 3 | G33: 0 | H33: 2 | I33: 0 | J33: 4 | K33: 5 | L33: 2 | M33: 2 | N33: 0 | O33: 2 | P33: 0 | Q33: 1 | R33: 1 | S33: 0 | T33: 0 | U33: 2 | V33: 0 | W33: 2 | X33: 0 | Y33: 1 | Z33: 1 | AA33: 0 | AB33: 0 | AC33: 0 | AD33: 0 | AE33: 0 | AF33: 36 | AG33: C2 | AI33: =AI31+2*(AI34-AI31)/3 -> 93.33333333 | AJ33: A*1
AI34: 100 | AJ34: A*1
